bitfinex/quotes_SOLUSD_20250310
["timestamp","ask_amount","ask_price","bid_price","bid_amount"]
[1741565114449,57.83851572,127.65,127.56,57.83851572]
[1741565114645,6.0258,127.68,127.63,57.83851572]
[1741565114843,5.5258,127.68,127.64,57.83851572]
[1741565115144,57.83851572,127.67,127.61,57.83851572]
[1741565115444,63.36431572,127.68,127.62,65.67411572]
[1741565115645,57.83851572,127.67,127.6,9.54]
[1741565115823,57.83851572,127.65,127.6,9.54]
[1741565116013,57.83851572,127.64,127.6,9.54]
[1741565116240,57.83851572,127.61,127.56,7.8394]
[1741565116426,57.83851572,127.59,127.55,9.56]
[1741565116623,57.83851572,127.58,127.54,0.063]
[1741565116827,57.83851572,127.57,127.54,0.063]
[1741565117327,57.83851572,127.56,127.54,0.063]
[1741565117536,57.83851572,127.58,127.54,0.063]
[1741565117928,57.83851572,127.56,127.54,0.063]
[1741565118328,57.83851572,127.57,127.54,0.063]
[1741565118534,57.83851572,127.56,127.54,0.063]
[1741565118836,57.83851572,127.57,127.54,0.063]
[1741565119052,57.83851572,127.55,127.54,0.063]
[1741565119216,57.83851572,127.56,127.54,0.063]
[1741565119420,264.33851572,127.57,127.54,0.063]
[1741565119814,57.83851572,127.56,127.54,0.063]
[1741565120829,57.83851572,127.55,127.54,0.063]
[1741565121244,76.48816458,127.55,127.54,0.063]
[1741565121414,200.58816458,127.55,127.54,0.063]
[1741565121620,76.48816458,127.55,127.48,9.563]
[1741565121847,71.91251572,127.49,127.48,0.063]
[1741565122054,90.56216458,127.49,127.48,0.063]
[1741565122285,119.67146458,127.49,127.38,276.0503]
[1741565122546,57.83851572,127.42,127.37,7.8509]
[1741565122752,57.83851572,127.4,127.35,57.90151572]
[1741565122929,57.83851572,127.38,127.35,0.063]
[1741565123131,124.1,127.41,127.35,65.75371572]
[1741565123354,57.83851572,127.4,127.35,57.90151572]
[1741565123657,57.83851572,127.36,127.35,0.063]
[1741565124447,76.48816458,127.36,127.35,0.063]
[1741565124949,124.1,127.35,127.24,81.5]
[1741565125151,57.83851572,127.36,127.3,57.83851572]
[1741565125323,6.1354,127.38,127.3,57.83851572]
[1741565125524,57.83851572,127.35,127.28,9.52]
[1741565125859,6.1354,127.38,127.35,0.063]
[1741565126021,82.4,127.39,127.36,57.83851572]
[1741565126219,82.4,127.39,127.35,0.063]
[1741565126435,57.83851572,127.36,127.35,0.063]
[1741565126746,57.83851572,127.37,127.35,0.063]
[1741565127242,57.83851572,127.36,127.35,0.063]
[1741565127642,140.23851572,127.37,127.35,0.063]
[1741565127835,57.83851572,127.36,127.35,0.063]
[1741565128038,76.48816458,127.36,127.35,0.063]
[1741565128230,86.06816458,127.36,127.27,17.4172]
[1741565128541,57.83851572,127.33,127.27,65.69571572]
[1741565128740,57.83851572,127.33,127.27,85.33891572]
[1741565128940,57.83851572,127.34,127.29,57.83851572]
[1741565129123,124.1,127.37,127.27,27.5004]
[1741565129124,57.83851572,127.37,127.27,27.5004]
[1741565129325,57.83851572,127.36,127.3,57.83851572]
[1741565129649,82.4,127.37,127.32,57.83851572]
[1741565129946,57.83851572,127.36,127.33,7.8536]
[1741565130152,57.83851572,127.36,127.31,85.33041572]
[1741565130341,82.4,127.37,127.32,57.83851572]
[1741565130756,57.83851572,127.36,127.31,7.8548]
[1741565130934,57.83851572,127.35,127.31,7.8548]
[1741565131252,140.23851572,127.37,127.31,27.4919]
[1741565131438,140.23851572,127.37,127.31,85.33041572]
[1741565131635,140.23851572,127.37,127.32,57.33851572]
[1741565131636,82.4,127.37,127.32,57.33851572]
[1741565132034,82.4,127.37,127.33,57.83851572]
[1741565132353,82.4,127.37,127.31,19.6371]
[1741565132557,82.4,127.37,127.32,57.83851572]
[1741565132778,140.23851572,127.4,127.34,57.83851572]
[1741565133131,57.83851572,127.39,127.33,57.83851572]
[1741565133326,57.83851572,127.38,127.33,57.83851572]
[1741565133530,57.83851572,127.39,127.33,57.83851572]
[1741565133755,6.3249,127.42,127.37,57.83851572]
[1741565133962,82.4,127.45,127.39,57.83851572]
[1741565134240,6.5503,127.46,127.43,57.83851572]
[1741565134440,6.5503,127.5,127.45,57.83851572]
[1741565134665,57.83851572,127.54,127.48,57.83851572]
[1741565134827,57.83851572,127.53,127.47,57.83851572]
[1741565135258,140.23851572,127.54,127.48,57.83851572]
[1741565135752,82.4,127.54,127.49,57.83851572]
[1741565135959,82.4,127.54,127.49,65.68201572]
[1741565136130,140.23851572,127.54,127.48,65.68281572]
[1741565136332,57.83851572,127.52,127.46,57.83851572]
[1741565136530,57.83851572,127.5,127.45,7.8462]
[1741565136949,57.83851572,127.51,127.45,65.68471572]
[1741565137229,57.83851572,127.5,127.45,7.8462]
[1741565137430,57.83851572,127.52,127.46,57.83851572]
[1741565137750,82.4,127.53,127.47,57.83851572]
[1741565138056,90.2413,127.53,127.46,57.83851572]
[1741565138243,57.83851572,127.51,127.45,65.68471572]
[1741565138636,57.83851572,127.5,127.45,7.8462]
[1741565139137,82.4,127.49,127.43,187.0]
[1741565139332,57.83851572,127.48,127.43,187.0]
[1741565139540,57.83851572,127.45,127.36,101.1283]
[1741565139760,57.83851572,127.44,127.38,57.83851572]
[1741565139937,82.4,127.45,127.39,57.83851572]
[1741565140173,57.83851572,127.43,127.37,17.3311]
[1741565140357,57.83851572,127.43,127.37,75.16961572]
[1741565140656,57.83851572,127.44,127.39,57.83851572]
[1741565140827,57.83851572,127.44,127.38,57.83851572]
[1741565141027,57.83851572,127.43,127.37,75.16961572]
[1741565141235,57.83851572,127.42,127.36,57.83851572]
[1741565141439,57.83851572,127.39,127.35,186.94]
[1741565141657,57.83851572,127.38,127.35,186.94]
[1741565141857,57.83851572,127.37,127.31,67.38151572]
[1741565142061,57.83851572,127.4,127.34,57.83851572]
[1741565142263,57.83851572,127.39,127.33,65.69211572]
[1741565143135,57.83851572,127.38,127.33,65.69211572]
[1741565143345,57.83851572,127.38,127.33,7.8536]
[1741565143535,57.83851572,127.38,127.33,65.69211572]
[1741565144042,57.83851572,127.38,127.33,7.8536]
[1741565144249,57.83851572,127.4,127.34,57.83851572]
[1741565144435,181.93851572,127.41,127.35,57.83851572]
[1741565144844,57.83851572,127.4,127.35,57.83851572]
[1741565145046,181.93851572,127.41,127.36,57.83851572]
[1741565145240,181.93851572,127.41,127.33,27.4876]
[1741565145534,57.83851572,127.38,127.33,65.69211572]
[1741565145733,76.48816458,127.4,127.34,57.83851572]
[1741565145950,124.1,127.41,127.36,57.83851572]
[1741565146162,181.93851572,127.41,127.36,65.68981572]
[1741565146564,124.1,127.44,127.37,57.83851572]
[1741565146763,6.1429,127.45,127.4,57.83851572]
[1741565146946,57.83851572,127.43,127.37,57.83851572]
[1741565147657,57.83851572,127.43,127.36,36.9206]
[1741565147658,82.4,127.44,127.39,57.83851572]
[1741565147838,140.23851572,127.44,127.39,57.83851572]
[1741565148334,6.1429,127.45,127.41,57.83851572]
[1741565148537,6.1429,127.45,127.42,57.83851572]
[1741565148736,6.1429,127.45,127.41,57.83851572]
[1741565148959,181.93851572,127.47,127.41,57.83851572]
[1741565149140,124.1,127.47,127.43,57.83851572]
[1741565149345,64.41631572,127.52,127.46,57.83851572]
[1741565149861,57.83851572,127.51,127.45,57.83851572]
[1741565150264,0.03,127.47,127.46,7.8455]
[1741565150873,0.03,127.47,127.46,65.68401572]
[1741565151041,57.83851572,127.54,127.46,94.69791572]
[1741565151246,57.83851572,127.56,127.51,57.83851572]
[1741565151573,57.83851572,127.54,127.48,57.83851572]
[1741565151752,57.83851572,127.53,127.46,17.2455]
[1741565151947,18.64964886,127.54,127.48,57.83851572]
[1741565152152,57.83851572,127.53,127.47,57.83851572]
[1741565152349,57.83851572,127.5,127.46,9.4]
[1741565152838,57.83851572,127.49,127.46,9.4]
[1741565153058,140.23851572,127.51,127.45,57.83851572]
[1741565153261,82.4,127.51,127.46,57.83851572]
[1741565153562,82.4,127.51,127.47,57.83851572]
[1741565153858,57.83851572,127.5,127.44,65.68531572]
[1741565154069,57.83851572,127.49,127.43,65.68581572]
[1741565154473,57.83851572,127.48,127.42,75.06631572]
[1741565154768,57.83851572,127.49,127.43,57.83851572]
[1741565155157,57.83851572,127.5,127.44,57.83851572]
[1741565155340,206.5,127.55,127.46,57.83851572]
[1741565155543,57.83851572,127.53,127.47,67.15851572]
[1741565155740,76.48816458,127.54,127.48,57.83851572]
[1741565155944,206.5,127.55,127.5,57.83851572]
[1741565155945,82.4,127.55,127.5,57.83851572]
[1741565156270,6.3919,127.57,127.54,57.83851572]
[1741565156583,0.03,127.58,127.54,65.67871572]
[1741565157146,0.03,127.58,127.55,57.83851572]
[1741565157352,0.03,127.58,127.56,57.83851572]
[1741565157775,0.03,127.58,127.55,57.83851572]
[1741565157950,0.03,127.58,127.56,57.83851572]
[1741565158150,0.03,127.58,127.57,57.83851572]
[1741565158675,0.03,127.58,127.57,65.67731572]
[1741565159087,0.03,127.58,127.57,147.17731572]
[1741565159370,88.5764,127.67,127.64,57.83851572]
[1741565159371,6.1764,127.67,127.64,57.83851572]
[1741565159666,6.1764,127.67,127.57,108.9358]
[1741565159667,6.1764,127.67,127.62,67.15851572]
[1741565160071,57.83851572,127.66,127.62,9.32]
[1741565160253,154.24761572,127.67,127.62,9.32]
[1741565160462,57.83851572,127.65,127.62,9.32]
[1741565160657,101.04964886,127.64,127.59,244.73851572]
[1741565160874,57.83851572,127.62,127.59,186.9]
[1741565161054,82.4,127.64,127.59,186.9]
[1741565161256,57.83851572,127.62,127.58,9.3]
[1741565161465,57.83851572,127.61,127.55,57.83851572]
[1741565161669,101.04964886,127.63,127.57,57.83851572]
[1741565161874,158.88816458,127.63,127.57,57.83851572]
[1741565162067,57.83851572,127.62,127.57,57.83851572]
[1741565162384,101.04964886,127.63,127.54,67.17851572]
[1741565162555,101.04964886,127.63,127.54,17.1806]
[1741565162873,0.03,127.68,127.62,57.83851572]
[1741565163073,0.03,127.68,127.63,9.36]
[1741565163264,0.03,127.65,127.63,67.19851572]
[1741565163659,0.03,127.65,127.63,9.36]
[1741565164368,0.03,127.65,127.6,244.67851572]
[1741565164560,0.03,127.65,127.6,204.0368]
[1741565164761,0.03,127.65,127.61,57.83851572]
[1741565165084,65.70261572,127.65,127.6,196.2]
[1741565165380,57.86851572,127.65,127.6,186.84]
[1741565165590,0.03,127.65,127.6,252.51541572]
[1741565165759,57.83851572,127.64,127.6,186.84]
[1741565165972,57.83851572,127.61,127.55,57.83851572]
[1741565166162,82.4,127.62,127.56,57.83851572]
[1741565166359,57.83851572,127.61,127.56,57.83851572]
[1741565166668,7.8364,127.61,127.56,57.83851572]
[1741565166868,57.83851572,127.59,127.55,9.36]
[1741565167074,166.28251572,127.62,127.56,57.83851572]
[1741565167075,154.52881572,127.62,127.56,57.83851572]
[1741565167463,57.83851572,127.61,127.56,57.83851572]
[1741565167664,57.83851572,127.59,127.54,67.15851572]
[1741565168063,57.83851572,127.6,127.55,57.83851572]
[1741565168277,57.83851572,127.58,127.54,9.32]
[1741565168483,26.48714886,127.6,127.54,9.32]
[1741565168692,57.83851572,127.56,127.53,186.82]
[1741565168878,57.83851572,127.56,127.51,57.83851572]
[1741565168879,57.83851572,127.54,127.48,7.8442]
[1741565169079,57.83851572,127.52,127.47,4.02398733]
[1741565169267,82.4,127.55,127.47,4.02398733]
[1741565169268,57.83851572,127.51,127.47,4.02398733]
[1741565169798,57.83851572,127.52,127.46,17.2054]
[1741565169969,82.4,127.54,127.5,57.83851572]
[1741565170172,57.83851572,127.52,127.46,98.7054]
[1741565170364,82.4,127.56,127.46,98.7054]
[1741565170581,90.2398,127.56,127.46,118.3193]
[1741565170786,18.64964886,127.55,127.46,81.5]
[1741565171088,206.5,127.54,127.45,244.61851572]
[1741565171295,57.83851572,127.51,127.45,261.82461572]
[1741565171490,57.83851572,127.5,127.45,203.9861]
[1741565171668,82.4,127.53,127.46,57.83851572]
[1741565171869,76.48816458,127.52,127.46,57.83851572]
[1741565172097,57.83851572,127.52,127.47,57.83851572]
[1741565172273,57.83851572,127.51,127.46,57.83851572]
[1741565172804,57.83851572,127.55,127.49,57.83851572]
[1741565172971,57.83851572,127.54,127.49,57.83851572]
[1741565173690,57.83851572,127.51,127.45,186.78]
[1741565173874,57.83851572,127.5,127.45,194.626]
[1741565174118,57.83851572,127.51,127.45,252.46451572]
[1741565174281,57.83851572,127.52,127.47,57.83851572]
[1741565174475,82.4,127.56,127.5,57.83851572]
[1741565174678,6.4313,127.58,127.53,57.83851572]
[1741565174985,82.4,127.6,127.57,57.83851572]
[1741565175177,63.96451572,127.62,127.56,57.83851572]
[1741565175495,57.83851572,127.6,127.55,57.83851572]
[1741565175677,5.626,127.62,127.57,57.83851572]
[1741565175873,57.83851572,127.6,127.54,57.83851572]
[1741565176392,57.83851572,127.58,127.53,67.17851572]
[1741565176596,57.83851572,127.58,127.53,9.34]
[1741565176780,57.83851572,127.56,127.53,9.34]
[1741565176983,57.83851572,127.56,127.51,57.83851572]
[1741565177184,57.83851572,127.56,127.5,57.83851572]
[1741565177400,57.83851572,127.56,127.51,57.83851572]
[1741565177589,57.83851572,127.56,127.5,57.83851572]
[1741565177895,57.83851572,127.54,127.5,9.34]
[1741565178084,57.83851572,127.53,127.5,9.34]
[1741565178300,82.4,127.54,127.48,57.83851572]
[1741565178483,57.83851572,127.53,127.48,57.83851572]
[1741565178790,57.83851572,127.52,127.46,75.08691572]
[1741565179002,65.68051572,127.52,127.46,67.24151572]
[1741565179181,57.83851572,127.51,127.46,75.08701572]
[1741565179387,57.83851572,127.52,127.46,75.08701572]
[1741565179583,64.16821572,127.53,127.47,57.83851572]
[1741565179780,6.3297,127.53,127.48,57.83851572]
[1741565180598,57.83851572,127.51,127.46,0.063]
[1741565180891,64.16821572,127.53,127.48,57.83851572]
[1741565181081,64.16821572,127.53,127.46,7.9085]
[1741565181082,65.67871572,127.55,127.49,57.83851572]
[1741565181278,57.83851572,127.54,127.48,57.83851572]
[1741565181607,82.4,127.54,127.46,65.74701572]
[1741565181779,57.83851572,127.51,127.46,7.9085]
[1741565181978,57.83851572,127.52,127.46,65.74701572]
[1741565182180,57.83851572,127.51,127.46,65.74701572]
[1741565182577,57.83851572,127.52,127.46,65.74701572]
[1741565182784,57.83851572,127.53,127.48,57.83851572]
[1741565183375,57.83851572,127.53,127.47,65.68291572]
[1741565183626,57.83851572,127.51,127.46,0.063]
[1741565183897,57.83851572,127.5,127.46,0.063]
[1741565184077,57.83851572,127.5,127.46,7.9085]
[1741565184274,82.4,127.51,127.46,65.74701572]
[1741565184499,76.48816458,127.49,127.46,0.063]
[1741565184702,7.8443,127.48,127.46,0.063]
[1741565184878,57.83851572,127.47,127.46,0.063]
[1741565185076,18.64964886,127.49,127.46,0.063]
[1741565185077,82.4,127.49,127.46,0.063]
[1741565185294,140.23851572,127.53,127.47,57.83851572]
[1741565185682,140.23851572,127.53,127.48,57.83851572]
[1741565185887,140.23851572,127.53,127.47,57.83851572]
[1741565186091,82.4,127.53,127.48,57.83851572]
[1741565186397,181.93851572,127.55,127.49,57.83851572]
[1741565186807,181.93851572,127.55,127.5,7.8431]
[1741565187100,124.1,127.55,127.51,57.83851572]
[1741565187403,63.96371572,127.57,127.52,57.83851572]
[1741565187617,63.96371572,127.57,127.51,57.83851572]
[1741565187981,18.64964886,127.58,127.53,57.83851572]
[1741565188192,57.83851572,127.56,127.5,74.96161572]
[1741565188401,57.83851572,127.54,127.5,9.28]
[1741565188592,140.23851572,127.55,127.5,9.28]
[1741565189201,57.83851572,127.51,127.49,0.063]
[1741565189382,57.83851572,127.5,127.49,0.063]
[1741565190087,76.48816458,127.5,127.49,0.063]
[1741565190812,20.0,127.47,127.46,0.063]
[1741565191020,85.68341572,127.47,127.46,0.063]
[1741565191179,104.33306458,127.47,127.46,0.063]
[1741565191384,18.64964886,127.45,127.38,186.86]
[1741565191624,76.48816458,127.43,127.38,186.86]
[1741565191789,76.48816458,127.43,127.38,244.69851572]
[1741565191992,264.33851572,127.44,127.38,252.54901572]
[1741565192283,57.83851572,127.46,127.4,57.83851572]
[1741565192485,282.98816458,127.49,127.43,57.83851572]
[1741565192710,57.83851572,127.48,127.43,57.83851572]
[1741565192921,65.68401572,127.46,127.41,9.22]
[1741565193140,57.83851572,127.46,127.41,17.0685]
[1741565193417,225.14964886,127.48,127.43,57.83851572]
[1741565193617,57.83851572,127.47,127.41,74.90701572]
[1741565193918,57.83851572,127.47,127.41,65.68701572]
[1741565194415,57.83851572,127.47,127.42,57.83851572]
[1741565194618,57.83851572,127.46,127.4,74.90771572]
[1741565194913,57.83851572,127.43,127.4,9.22]
[1741565195091,57.83851572,127.44,127.38,252.54891572]
[1741565195291,57.83851572,127.43,127.38,252.54891572]
[1741565196025,57.83851572,127.43,127.34,81.5]
[1741565196026,57.83851572,127.41,127.35,7.8523]
[1741565196191,142.74964886,127.43,127.36,57.83851572]
[1741565196382,142.74964886,127.43,127.38,57.83851572]
[1741565196383,124.1,127.43,127.38,57.83851572]
[1741565196589,140.23851572,127.44,127.38,57.83851572]
[1741565197228,82.4,127.44,127.38,65.68881572]
[1741565197510,82.4,127.44,127.4,57.83851572]
[1741565197726,57.83851572,127.47,127.41,57.83851572]
[1741565197926,158.88816458,127.48,127.42,57.83851572]
[1741565198418,57.83851572,127.46,127.4,57.83851572]
[1741565199008,57.83851572,127.46,127.41,57.83851572]
[1741565199228,57.83851572,127.46,127.42,7.848]
[1741565199404,158.88816458,127.48,127.42,65.68651572]
[1741565199608,57.83851572,127.45,127.42,0.063]
[1741565200116,57.83851572,127.43,127.42,0.063]
[1741565200321,76.48816458,127.43,127.42,0.063]
[1741565201303,84.33556458,127.43,127.42,0.063]
[1741565201724,124.1,127.44,127.42,0.063]
[1741565201899,26.49544886,127.46,127.42,0.063]
[1741565202100,57.83851572,127.45,127.42,0.063]
[1741565202299,57.83851572,127.43,127.42,0.063]
[1741565203107,142.74964886,127.46,127.42,0.063]
[1741565203318,150.59524886,127.46,127.42,0.063]
[1741565203524,208.43376458,127.46,127.42,0.063]
[1741565203833,57.83851572,127.45,127.42,0.063]
[1741565204122,150.59524886,127.46,127.42,0.063]
[1741565204123,208.43376458,127.46,127.42,0.063]
[1741565204503,181.93851572,127.46,127.42,0.063]
[1741565204701,189.78421572,127.46,127.42,0.063]
[1741565205022,181.93851572,127.46,127.42,0.063]
[1741565205423,124.1,127.46,127.42,57.90151572]
[1741565205623,124.1,127.46,127.42,0.063]
[1741565206212,140.23851572,127.47,127.42,0.063]
[1741565206830,0.03,127.5,127.45,57.83851572]
[1741565207416,57.86851572,127.5,127.46,7.8455]
[1741565207617,57.86851572,127.5,127.47,57.83851572]
[1741565207618,0.03,127.5,127.47,57.83851572]
[1741565207934,0.03,127.5,127.46,7.8455]
[1741565208234,0.03,127.5,127.47,57.83851572]
[1741565208814,0.03,127.5,127.46,65.68401572]
[1741565210145,0.03,127.5,127.46,85.29791572]
[1741565210443,81.93,127.51,127.46,85.29791572]
[1741565210938,81.93,127.51,127.47,57.83851572]
[1741565211512,81.93,127.51,127.47,7.8446]
[1741565212023,64.08491572,127.52,127.47,7.8446]
[1741565212325,0.03,127.5,127.48,57.83851572]
[1741565213117,0.03,127.5,127.49,57.83851572]
[1741565213723,0.03,127.5,127.49,65.68221572]
[1741565214523,0.03,127.5,127.48,57.83851572]
[1741565214912,0.03,127.5,127.49,57.83851572]
[1741565215927,0.03,127.5,127.49,65.68221572]
[1741565216326,0.03,127.5,127.49,57.83851572]
[1741565216627,0.03,127.5,127.48,65.68261572]
[1741565217032,0.03,127.5,127.49,57.83851572]
[1741565217559,166.08207853,127.54,127.48,65.68261572]
[1741565217731,147.60931572,127.54,127.48,65.68261572]
[1741565218421,38.50141838,127.53,127.48,46.34551838]
[1741565218728,38.50141838,127.52,127.47,7.8448]
[1741565219313,38.50141838,127.51,127.46,7.8454]
[1741565219524,120.43141838,127.52,127.46,46.34681838]
[1741565219760,120.43141838,127.52,127.46,65.96071838]
[1741565219923,120.43141838,127.52,127.48,7.8443]
[1741565219924,81.93,127.52,127.48,7.8443]
[1741565220132,81.93,127.52,127.48,46.34571838]
[1741565220428,38.50141838,127.55,127.49,38.50141838]
[1741565220625,38.50141838,127.55,127.5,38.50141838]
[1741565220835,38.50141838,127.55,127.49,38.50141838]
[1741565221023,81.93,127.56,127.5,38.50141838]
[1741565221333,38.50141838,127.55,127.5,38.50141838]
[1741565221829,38.50141838,127.55,127.49,38.50141838]
[1741565222128,38.50141838,127.55,127.5,46.34451838]
[1741565222332,89.7694,127.56,127.5,46.34451838]
[1741565222333,128.27081838,127.56,127.5,46.34451838]
[1741565222632,38.50141838,127.55,127.5,46.34451838]
[1741565222936,120.43141838,127.6,127.5,156.39231838]
[1741565223227,128.26841838,127.6,127.54,38.50141838]
[1741565223436,38.50141838,127.56,127.5,101.115]
[1741565223608,38.50141838,127.56,127.51,38.50141838]
[1741565223812,120.43141838,127.58,127.53,38.50141838]
[1741565224125,38.50141838,127.6,127.55,38.50141838]
[1741565224339,96.3101,127.61,127.54,38.50141838]
[1741565224518,38.50141838,127.58,127.51,93.22342701]
[1741565224711,38.50141838,127.58,127.52,38.50141838]
[1741565224920,81.93,127.6,127.56,38.50141838]
[1741565225111,81.96,127.62,127.58,38.50141838]
[1741565225319,120.46141838,127.62,127.57,38.50141838]
[1741565225519,81.96,127.62,127.57,38.50141838]
[1741565225819,0.03,127.62,127.57,38.50141838]
[1741565226029,0.03,127.62,127.6,38.50141838]
[1741565226326,0.03,127.63,127.61,77.00283676]
[1741565226534,0.0001,127.65,127.64,38.50141838]
[1741565226840,0.03,127.68,127.67,20.0]
[1741565227026,0.03,127.68,127.67,148.96141838]
[1741565227227,0.03,127.68,127.67,90.46]
[1741565227422,0.03,127.68,127.67,128.96141838]
[1741565228027,0.03,127.68,127.67,136.79401838]
[1741565228317,29.937,127.76,127.7,20.0]
[1741565228654,29.937,127.76,127.75,57.53687467]
[1741565228818,29.937,127.76,127.75,148.01687467]
[1741565229644,29.937,127.76,127.75,8.98]
[1741565229815,29.937,127.76,127.74,186.84]
[1741565230021,29.937,127.76,127.71,90.46]
[1741565230022,57.53687467,127.75,127.71,8.96]
[1741565230440,29.937,127.76,127.72,57.53687467]
[1741565230653,29.937,127.76,127.71,8.96]
[1741565230823,57.53687467,127.75,127.71,8.96]
[1741565231029,57.53687467,127.73,127.68,139.03687467]
[1741565231224,57.53687467,127.71,127.66,186.72]
[1741565231625,57.53687467,127.69,127.66,186.72]
[1741565231838,57.53687467,127.7,127.66,186.72]
[1741565232026,65.36787467,127.7,127.66,186.72]
[1741565232231,57.53687467,127.68,127.65,8.96]
[1741565232440,57.53687467,127.67,127.62,57.53687467]
[1741565232725,81.93,127.69,127.64,57.53687467]
[1741565232927,139.46687467,127.69,127.63,57.53687467]
[1741565233126,7.8302,127.71,127.63,81.5]
[1741565233332,147.29607467,127.73,127.67,57.53687467]
[1741565233542,147.29607467,127.73,127.63,81.5]
[1741565233543,81.93,127.75,127.7,57.53687467]
[1741565233746,87.47387467,127.76,127.7,57.53687467]
[1741565234044,29.937,127.76,127.73,57.53687467]
[1741565234246,29.937,127.76,127.74,57.53687467]
[1741565234545,29.937,127.76,127.75,57.53687467]
[1741565235134,29.937,127.76,127.74,57.53687467]
[1741565235644,29.937,127.76,127.71,57.53687467]
[1741565235645,87.47387467,127.76,127.71,57.53687467]
[1741565235834,37.7643,127.76,127.68,57.53687467]
[1741565236032,37.7643,127.76,127.67,81.5]
[1741565236033,57.53687467,127.74,127.67,81.5]
[1741565236342,57.53687467,127.74,127.66,57.53687467]
[1741565236343,57.53687467,127.72,127.66,57.53687467]
[1741565236738,57.53687467,127.7,127.65,66.51687467]
[1741565237044,88.4808,127.73,127.67,57.53687467]
[1741565237348,57.53687467,127.7,127.65,66.51687467]
[1741565237727,57.53687467,127.71,127.65,66.51687467]
[1741565237934,139.46687467,127.72,127.66,57.53687467]
[1741565238133,64.08767467,127.73,127.68,57.53687467]
[1741565238326,37.7943,127.76,127.69,57.53687467]
[1741565238327,57.53687467,127.75,127.69,57.53687467]
[1741565238530,57.53687467,127.72,127.66,57.53687467]
[1741565238741,100.57964886,127.74,127.66,57.53687467]
[1741565238945,57.53687467,127.73,127.68,57.53687467]
[1741565239357,139.46687467,127.74,127.69,57.53687467]
[1741565239853,57.53687467,127.72,127.66,57.53687467]
[1741565240029,65.36767467,127.71,127.65,155.85067467]
[1741565240231,57.53687467,127.71,127.66,57.53687467]
[1741565240436,81.93,127.73,127.68,57.53687467]
[1741565240650,57.53687467,127.71,127.66,57.53687467]
[1741565241346,108.40864886,127.73,127.67,57.53687467]
[1741565241347,81.93,127.73,127.67,57.53687467]
[1741565241658,87.50387467,127.76,127.71,57.53687467]
[1741565241850,57.53687467,127.74,127.68,57.53687467]
[1741565242046,57.53687467,127.73,127.67,89.3323]
[1741565242351,57.53687467,127.69,127.64,57.53687467]
[1741565242533,57.53687467,127.68,127.62,65.37237467]
[1741565242731,57.53687467,127.67,127.61,195.58]
[1741565242931,57.53687467,127.67,127.61,203.4162]
[1741565243145,57.53687467,127.65,127.61,186.62]
[1741565243334,57.53687467,127.64,127.58,57.53687467]
[1741565243530,57.53687467,127.63,127.57,65.37527467]
[1741565243740,57.53687467,127.64,127.58,57.53687467]
[1741565244033,57.53687467,127.62,127.56,89.3392]
[1741565244339,57.53687467,127.62,127.56,57.53687467]
[1741565244541,81.93,127.64,127.57,57.53687467]
[1741565244542,57.53687467,127.63,127.57,57.53687467]
[1741565244737,139.46687467,127.64,127.58,57.53687467]
[1741565245049,139.46687467,127.64,127.59,57.53687467]
[1741565245251,81.93,127.66,127.6,57.53687467]
[1741565245447,57.53687467,127.65,127.59,57.53687467]
[1741565245645,57.53687467,127.62,127.57,8.92]
[1741565245845,57.53687467,127.6,127.55,7.84]
[1741565246028,151.26964886,127.65,127.54,244.15687467]
[1741565246029,57.53687467,127.59,127.54,194.4606]
[1741565246349,76.18652353,127.62,127.54,186.62]
[1741565246350,57.53687467,127.58,127.54,186.62]
[1741565246735,57.53687467,127.59,127.54,194.4606]
[1741565247153,57.53687467,127.59,127.54,186.62]
[1741565247539,57.53687467,127.59,127.54,194.4605]
[1741565247936,63.87817467,127.6,127.54,251.99737467]
[1741565248132,6.3413,127.6,127.56,7.8394]
[1741565248335,57.53687467,127.62,127.56,7.8394]
[1741565248531,6.5041,127.64,127.6,57.53687467]
[1741565248737,6.5041,127.68,127.63,57.53687467]
[1741565248951,57.53687467,127.67,127.61,66.47687467]
[1741565249130,64.04097467,127.68,127.62,57.53687467]
[1741565249332,57.53687467,127.66,127.61,8.94]
[1741565249528,57.53687467,127.64,127.59,57.53687467]